[Event "Late-Titled-Tuesday-Blitz-February-13-2024"]
[Site "Chess.com"]
[Date "2024.02.13"]
[Round "5"]
[White "Mikhail_Golubev"]
[Black "mitrabhaa"]
[Result "0-1"]
[WhiteElo "2685"]
[BlackElo "2896"]
[TimeControl "180+1"]
[EndTime "14:56:05 PST"]
[Termination "mitrabhaa won on time"]

1. e4 {[%clk 0:03:00.9]} 1... c6 {[%clk 0:02:30]} 2. Nf3 {[%clk 0:02:58.3]} 2...
d5 {[%clk 0:02:30.9]} 3. d3 {[%clk 0:02:58.3]} 3... Nd7 {[%clk 0:02:29.2]} 4.
Nbd2 {[%clk 0:02:55.6]} 4... e5 {[%clk 0:02:29]} 5. d4 {[%clk 0:02:53.4]} 5...
exd4 {[%clk 0:02:27.7]} 6. exd5 {[%clk 0:02:47.2]} 6... c5 {[%clk 0:02:27.5]} 7.
c3 {[%clk 0:02:38.8]} 7... dxc3 {[%clk 0:02:21.5]} 8. bxc3 {[%clk 0:02:39.7]}
8... Ngf6 {[%clk 0:02:21]} 9. c4 {[%clk 0:02:37]} 9... Bd6 {[%clk 0:02:21.4]}
10. Bd3 {[%clk 0:02:33.1]} 10... O-O {[%clk 0:02:16]} 11. O-O {[%clk 0:02:33.1]}
11... Re8 {[%clk 0:02:13.8]} 12. Bb2 {[%clk 0:02:30.7]} 12... b6 {[%clk
0:02:11.9]} 13. Qc2 {[%clk 0:02:27.3]} 13... h6 {[%clk 0:02:11.2]} 14. a4 {[%clk
0:02:23]} 14... Qc7 {[%clk 0:02:08.5]} 15. a5 {[%clk 0:02:13.9]} 15... bxa5
{[%clk 0:01:55.1]} 16. Bc3 {[%clk 0:02:11.5]} 16... Rb8 {[%clk 0:01:52.2]} 17.
Bxa5 {[%clk 0:02:10.2]} 17... Nb6 {[%clk 0:01:52.4]} 18. Bc3 {[%clk 0:02:06.5]}
18... Nbd7 {[%clk 0:01:42.8]} 19. Qa2 {[%clk 0:01:47.8]} 19... a6 {[%clk
0:01:41.5]} 20. Ba5 {[%clk 0:01:40.6]} 20... Qa7 {[%clk 0:01:41]} 21. Rfe1
{[%clk 0:01:36.8]} 21... Bb7 {[%clk 0:01:33.7]} 22. Bc3 {[%clk 0:01:30.9]} 22...
Rxe1+ {[%clk 0:01:28.2]} 23. Rxe1 {[%clk 0:01:29.7]} 23... Re8 {[%clk
0:01:27.1]} 24. Rxe8+ {[%clk 0:01:27.4]} 24... Nxe8 {[%clk 0:01:28]} 25. Ne4
{[%clk 0:01:27.3]} 25... Bf8 {[%clk 0:01:24.8]} 26. Ng3 {[%clk 0:01:06.9]} 26...
Bc8 {[%clk 0:01:17.7]} 27. h4 {[%clk 0:01:04]} 27... Ndf6 {[%clk 0:01:15.4]} 28.
Ne4 {[%clk 0:00:47.8]} 28... Nxe4 {[%clk 0:01:12.6]} 29. Bxe4 {[%clk 0:00:48.7]}
29... Qb8 {[%clk 0:01:11.3]} 30. Bb1 {[%clk 0:00:42.2]} 30... Qf4 {[%clk
0:01:05.9]} 31. Qc2 {[%clk 0:00:28.6]} 31... g6 {[%clk 0:01:01]} 32. Be5 {[%clk
0:00:26.4]} 32... Qg4 {[%clk 0:00:58.4]} 33. Qa4 {[%clk 0:00:23.3]} 33... Qd7
{[%clk 0:00:51.5]} 34. Qa1 {[%clk 0:00:22.4]} 34... Qg4 {[%clk 0:00:46.9]} 35.
Bd3 {[%clk 0:00:20.8]} 35... Qd7 {[%clk 0:00:33]} 36. Bb2 {[%clk 0:00:19.7]}
36... Qg4 {[%clk 0:00:30.3]} 37. Qa3 {[%clk 0:00:18.4]} 37... Bf5 {[%clk
0:00:23.8]} 38. Bxf5 {[%clk 0:00:08.9]} 38... Qxf5 {[%clk 0:00:24.7]} 39. Qa1
{[%clk 0:00:04.2]} 39... Qd3 {[%clk 0:00:21.9]} 40. Qc1 {[%clk 0:00:02.3]} 40...
Nd6 {[%clk 0:00:21.9]} 41. Ne5 {[%clk 0:00:01.4]} 41... Qe4 {[%clk 0:00:20.4]}
42. Qc3 {[%clk 0:00:01.5]} 42... Bg7 {[%clk 0:00:19.5]} 0-1

[Event "Late-Titled-Tuesday-Blitz-February-13-2024"]
[Site "Chess.com"]
[Date "2024.02.13"]
[Round "5"]
[White "LLRChess"]
[Black "ACollins05"]
[Result "0-1"]
[WhiteElo "2579"]
[BlackElo "2460"]
[TimeControl "180+1"]
[EndTime "14:56:07 PST"]
[Termination "ACollins05 won on time"]

1. e4 {[%clk 0:03:00.9]} 1... c5 {[%clk 0:02:59.6]} 2. Nf3 {[%clk 0:03:01]} 2...
d6 {[%clk 0:02:59.8]} 3. c3 {[%clk 0:03:01.6]} 3... Nf6 {[%clk 0:02:59.7]} 4. h3
{[%clk 0:03:01.6]} 4... g6 {[%clk 0:02:48.1]} 5. Qc2 {[%clk 0:03:00.9]} 5... Bg7
{[%clk 0:02:47.2]} 6. d4 {[%clk 0:03:01]} 6... O-O {[%clk 0:02:36.1]} 7. Bd3
{[%clk 0:02:59.8]} 7... Nc6 {[%clk 0:02:31.6]} 8. dxc5 {[%clk 0:02:59.9]} 8...
dxc5 {[%clk 0:02:31.1]} 9. O-O {[%clk 0:02:58.7]} 9... Qc7 {[%clk 0:02:28.1]}
10. Na3 {[%clk 0:02:51.4]} 10... a6 {[%clk 0:02:24.7]} 11. Nc4 {[%clk
0:02:49.1]} 11... b5 {[%clk 0:02:22]} 12. Ne3 {[%clk 0:02:49.2]} 12... Bb7
{[%clk 0:02:21.3]} 13. a4 {[%clk 0:02:44.4]} 13... c4 {[%clk 0:02:19.9]} 14. Be2
{[%clk 0:02:44.6]} 14... Ne5 {[%clk 0:02:15.1]} 15. Nxe5 {[%clk 0:02:36.6]}
15... Qxe5 {[%clk 0:02:16]} 16. f3 {[%clk 0:02:36.1]} 16... Nh5 {[%clk
0:02:09.7]} 17. Ng4 {[%clk 0:02:33.4]} 17... Qc7 {[%clk 0:02:01]} 18. Be3 {[%clk
0:02:04.1]} 18... Rfd8 {[%clk 0:01:45]} 19. Rfe1 {[%clk 0:01:37.3]} 19... Nf4
{[%clk 0:01:40.4]} 20. Bf1 {[%clk 0:01:34]} 20... h5 {[%clk 0:01:36.8]} 21. Nf2
{[%clk 0:01:32.4]} 21... Rd7 {[%clk 0:01:30.8]} 22. axb5 {[%clk 0:01:30.4]}
22... axb5 {[%clk 0:01:31.7]} 23. Rxa8+ {[%clk 0:01:30.3]} 23... Bxa8 {[%clk
0:01:32.6]} 24. Ra1 {[%clk 0:01:30.2]} 24... Bb7 {[%clk 0:01:26.2]} 25. Ra7
{[%clk 0:01:29]} 25... Qc8 {[%clk 0:01:14.4]} 26. Bxf4 {[%clk 0:01:27.5]} 26...
Bxe4 {[%clk 0:01:07.7]} 27. Nxe4 {[%clk 0:01:11.2]} 27... Rxa7 {[%clk
0:01:07.3]} 28. b3 {[%clk 0:01:04.1]} 28... Ra1 {[%clk 0:00:50.5]} 29. Kf2
{[%clk 0:00:59.6]} 29... Qa6 {[%clk 0:00:34.1]} 30. Nd2 {[%clk 0:00:52.6]} 30...
Ra2 {[%clk 0:00:30.8]} 31. Qc1 {[%clk 0:00:51.5]} 31... cxb3 {[%clk 0:00:27.3]}
32. Kg3 {[%clk 0:00:44.5]} 32... b2 {[%clk 0:00:25.9]} 33. Qb1 {[%clk
0:00:38.9]} 33... Bxc3 {[%clk 0:00:20.6]} 34. Ne4 {[%clk 0:00:30.1]} 34... Bg7
{[%clk 0:00:13.6]} 35. Nc5 {[%clk 0:00:21.8]} 35... Qa7 {[%clk 0:00:11.3]} 36.
Qc2 {[%clk 0:00:12.3]} 36... Ra1 {[%clk 0:00:10.4]} 37. Nd7 {[%clk 0:00:03.3]}
37... Qxd7 {[%clk 0:00:08.3]} 0-1

[Event "Late-Titled-Tuesday-Blitz-February-13-2024"]
[Site "Chess.com"]
[Date "2024.02.13"]
[Round "5"]
[White "MikaelyanArman"]
[Black "rhungaski"]
[Result "0-1"]
[WhiteElo "2809"]
[BlackElo "2558"]
[TimeControl "180+1"]
[EndTime "14:56:09 PST"]
[Termination "rhungaski won by resignation"]

1. d4 {[%clk 0:03:00.9]} 1... g6 {[%clk 0:02:59]} 2. e4 {[%clk 0:03:00.3]} 2...
Bg7 {[%clk 0:02:58.9]} 3. Nf3 {[%clk 0:03:01]} 3... d6 {[%clk 0:02:59.1]} 4. Bc4
{[%clk 0:03:00.1]} 4... a6 {[%clk 0:02:59.1]} 5. O-O {[%clk 0:03:00]} 5... b5
{[%clk 0:02:58]} 6. Bb3 {[%clk 0:03:00.3]} 6... e6 {[%clk 0:02:56.4]} 7. Nbd2
{[%clk 0:02:57.8]} 7... Bb7 {[%clk 0:02:55.8]} 8. Re1 {[%clk 0:02:58]} 8... Nd7
{[%clk 0:02:55.4]} 9. c3 {[%clk 0:02:47.4]} 9... Ne7 {[%clk 0:02:54.6]} 10. Nf1
{[%clk 0:02:47]} 10... h6 {[%clk 0:02:54.1]} 11. Ng3 {[%clk 0:02:47.3]} 11...
O-O {[%clk 0:02:51.1]} 12. h4 {[%clk 0:02:47.4]} 12... c5 {[%clk 0:02:49]} 13.
Bf4 {[%clk 0:02:44]} 13... c4 {[%clk 0:02:45.6]} 14. Bc2 {[%clk 0:02:43.9]}
14... e5 {[%clk 0:02:45.3]} 15. Be3 {[%clk 0:02:35.5]} 15... Nc6 {[%clk
0:02:27.6]} 16. Qd2 {[%clk 0:02:34.8]} 16... Kh7 {[%clk 0:02:26.1]} 17. h5
{[%clk 0:02:34.3]} 17... Qe7 {[%clk 0:02:17.9]} 18. a4 {[%clk 0:02:17.3]} 18...
exd4 {[%clk 0:02:12.8]} 19. cxd4 {[%clk 0:02:16.1]} 19... b4 {[%clk 0:01:42.2]}
20. e5 {[%clk 0:02:13.5]} 20... dxe5 {[%clk 0:01:34.9]} 21. d5 {[%clk
0:02:13.5]} 21... c3 {[%clk 0:01:34.3]} 22. hxg6+ {[%clk 0:02:08.8]} 22... fxg6
{[%clk 0:01:32.9]} 23. Qd3 {[%clk 0:02:07.9]} 23... e4 {[%clk 0:01:32.9]} 24.
Nxe4 {[%clk 0:02:04.9]} 24... Nce5 {[%clk 0:01:31.3]} 25. Nxe5 {[%clk
0:01:15.1]} 25... Nxe5 {[%clk 0:01:30]} 26. d6 {[%clk 0:01:15.7]} 26... Qe6
{[%clk 0:01:20.3]} 27. Qe2 {[%clk 0:01:10]} 27... cxb2 {[%clk 0:01:15.3]} 28.
Rad1 {[%clk 0:01:09.4]} 28... Qc4 {[%clk 0:00:45.3]} 29. Nc5 {[%clk 0:00:46.6]}
29... Qh4 {[%clk 0:00:19.6]} 30. Nxb7 {[%clk 0:00:41.5]} 30... Ng4 {[%clk
0:00:19.5]} 31. Bxg6+ {[%clk 0:00:37.4]} 31... Kxg6 {[%clk 0:00:17.6]} 32. Qc2+
{[%clk 0:00:34]} 32... Rf5 {[%clk 0:00:14.8]} 33. Rd5 {[%clk 0:00:32.3]} 33...
Qh2+ {[%clk 0:00:14.1]} 34. Kf1 {[%clk 0:00:32.8]} 34... Nxe3+ {[%clk
0:00:12.4]} 35. Rxe3 {[%clk 0:00:30.6]} 35... b1=Q+ {[%clk 0:00:11]} 36. Qxb1
{[%clk 0:00:26.2]} 36... Qh1+ {[%clk 0:00:10.9]} 37. Ke2 {[%clk 0:00:26.8]}
37... Qxb1 {[%clk 0:00:11.2]} 38. Rd2 {[%clk 0:00:19.3]} 38... Raf8 {[%clk
0:00:10.7]} 39. f3 {[%clk 0:00:18.7]} 39... Bc3 {[%clk 0:00:10.8]} 40. Rdd3
{[%clk 0:00:16.6]} 40... Qc2+ {[%clk 0:00:10.4]} 41. Kf1 {[%clk 0:00:17]} 41...
Rh5 {[%clk 0:00:08.9]} 42. Kg1 {[%clk 0:00:14.8]} 42... Qc1+ {[%clk 0:00:08.8]}
43. Kf2 {[%clk 0:00:15.1]} 43... Rh1 {[%clk 0:00:08.8]} 44. d7 {[%clk
0:00:13.2]} 44... Be1+ {[%clk 0:00:08.7]} 45. Ke2 {[%clk 0:00:13]} 45... Qc2+
{[%clk 0:00:08.9]} 0-1

[Event "Late-Titled-Tuesday-Blitz-February-13-2024"]
[Site "Chess.com"]
[Date "2024.02.13"]
[Round "5"]
[White "martinmena"]
[Black "inagreV"]
[Result "1-0"]
[WhiteElo "2159"]
[BlackElo "2353"]
[TimeControl "180+1"]
[EndTime "14:56:09 PST"]
[Termination "martinmena won by resignation"]

1. c4 {[%clk 0:03:00.9]} 1... g6 {[%clk 0:02:57.9]} 2. Nc3 {[%clk 0:02:57.4]}
2... Bg7 {[%clk 0:02:57.5]} 3. g3 {[%clk 0:02:57.5]} 3... Nf6 {[%clk 0:02:56.5]}
4. Bg2 {[%clk 0:02:58]} 4... O-O {[%clk 0:02:57]} 5. d3 {[%clk 0:02:57.8]} 5...
d6 {[%clk 0:02:55]} 6. Bg5 {[%clk 0:02:56.9]} 6... c5 {[%clk 0:02:49.4]} 7. Qd2
{[%clk 0:02:57]} 7... Nc6 {[%clk 0:02:48.4]} 8. e4 {[%clk 0:02:57.4]} 8... Rb8
{[%clk 0:02:47.3]} 9. Nge2 {[%clk 0:02:55.8]} 9... a6 {[%clk 0:02:46.3]} 10. Bh6
{[%clk 0:02:46]} 10... b5 {[%clk 0:02:44.8]} 11. Bxg7 {[%clk 0:02:45.1]} 11...
Kxg7 {[%clk 0:02:45.7]} 12. b3 {[%clk 0:02:44.3]} 12... bxc4 {[%clk 0:02:43.3]}
13. dxc4 {[%clk 0:02:45.1]} 13... Bd7 {[%clk 0:02:41.1]} 14. O-O {[%clk
0:02:43.2]} 14... a5 {[%clk 0:02:36.4]} 15. Nd5 {[%clk 0:02:25]} 15... Nxd5
{[%clk 0:02:34.2]} 16. exd5 {[%clk 0:02:22.8]} 16... Ne5 {[%clk 0:02:26.8]} 17.
h3 {[%clk 0:02:11.4]} 17... f6 {[%clk 0:02:25.3]} 18. f4 {[%clk 0:02:06.1]}
18... Nf7 {[%clk 0:02:25.1]} 19. g4 {[%clk 0:02:06.1]} 19... a4 {[%clk
0:02:24.5]} 20. Qe3 {[%clk 0:01:58.6]} 20... Re8 {[%clk 0:02:19.4]} 21. f5
{[%clk 0:01:52.7]} 21... g5 {[%clk 0:02:17.8]} 22. Ng3 {[%clk 0:01:49.1]} 22...
Ne5 {[%clk 0:02:15.8]} 23. Bf3 {[%clk 0:01:41.7]} 23... Qb6 {[%clk 0:02:12]} 24.
h4 {[%clk 0:01:39]} 24... h6 {[%clk 0:02:10.7]} 25. Rab1 {[%clk 0:00:52.9]}
25... axb3 {[%clk 0:01:58.9]} 26. axb3 {[%clk 0:00:52.4]} 26... Qb4 {[%clk
0:01:39.5]} 27. Be2 {[%clk 0:00:44.9]} 27... Ra8 {[%clk 0:01:35.7]} 28. hxg5
{[%clk 0:00:19.6]} 28... hxg5 {[%clk 0:01:34.3]} 29. Kg2 {[%clk 0:00:19.6]}
29... Rh8 {[%clk 0:01:33.5]} 30. Rh1 {[%clk 0:00:19.6]} 30... Rxh1 {[%clk
0:01:32.2]} 31. Rxh1 {[%clk 0:00:20.2]} 31... Ra2 {[%clk 0:00:40.6]} 32. Nh5+
{[%clk 0:00:09.5]} 32... Kg8 {[%clk 0:00:38.6]} 33. Kf1 {[%clk 0:00:05.1]} 33...
Ra1+ {[%clk 0:00:36.1]} 34. Kg2 {[%clk 0:00:05]} 34... Rxh1 {[%clk 0:00:36]} 35.
Kxh1 {[%clk 0:00:05.9]} 35... Qe1+ {[%clk 0:00:36.3]} 36. Kg2 {[%clk 0:00:05.4]}
36... Nxg4 {[%clk 0:00:06.2]} 37. Qxe7 {[%clk 0:00:04.9]} 37... Qf2+ {[%clk
0:00:06.2]} 38. Kh3 {[%clk 0:00:04.7]} 38... Qh4+ {[%clk 0:00:06.8]} 39. Kg2
{[%clk 0:00:04.2]} 39... Qh2+ {[%clk 0:00:05.7]} 40. Kf3 {[%clk 0:00:03.3]}
40... Qf4+ {[%clk 0:00:06.3]} 41. Nxf4 {[%clk 0:00:02.1]} 1-0

[Event "Late-Titled-Tuesday-Blitz-February-13-2024"]
[Site "Chess.com"]
[Date "2024.02.13"]
[Round "5"]
[White "dawid498"]
[Black "Genghis_K"]
[Result "0-1"]
[WhiteElo "2691"]
[BlackElo "2915"]
[TimeControl "180+1"]
[EndTime "14:56:12 PST"]
[Termination "Genghis_K won by checkmate"]

1. e4 {[%clk 0:03:00.9]} 1... c5 {[%clk 0:03:00.6]} 2. Nf3 {[%clk 0:03:00.7]}
2... d6 {[%clk 0:03:01.4]} 3. Nc3 {[%clk 0:03:00.4]} 3... Nf6 {[%clk 0:03:01.1]}
4. e5 {[%clk 0:03:00.9]} 4... dxe5 {[%clk 0:03:01.2]} 5. Nxe5 {[%clk 0:03:01.8]}
5... a6 {[%clk 0:03:01.8]} 6. g3 {[%clk 0:03:01.9]} 6... Qd6 {[%clk 0:03:02.5]}
7. Nc4 {[%clk 0:02:59]} 7... Qc6 {[%clk 0:02:59.2]} 8. Rg1 {[%clk 0:02:58.6]}
8... Bg4 {[%clk 0:02:54.6]} 9. Be2 {[%clk 0:02:56.9]} 9... Bxe2 {[%clk
0:02:48.6]} 10. Qxe2 {[%clk 0:02:57.8]} 10... b5 {[%clk 0:02:46.7]} 11. Ne5
{[%clk 0:02:54.7]} 11... Qb7 {[%clk 0:02:46.3]} 12. d3 {[%clk 0:02:47.7]} 12...
Nbd7 {[%clk 0:02:43.1]} 13. Bf4 {[%clk 0:02:30]} 13... e6 {[%clk 0:02:41.1]} 14.
O-O-O {[%clk 0:02:23.9]} 14... Be7 {[%clk 0:02:41.3]} 15. Kb1 {[%clk 0:02:02.5]}
15... O-O {[%clk 0:02:39.3]} 16. g4 {[%clk 0:02:00.4]} 16... b4 {[%clk
0:02:33.1]} 17. Ne4 {[%clk 0:01:56.1]} 17... Nd5 {[%clk 0:02:31.4]} 18. Nxd7
{[%clk 0:01:38.3]} 18... Qxd7 {[%clk 0:02:23.9]} 19. Bc1 {[%clk 0:01:38.1]}
19... a5 {[%clk 0:02:22.5]} 20. g5 {[%clk 0:01:29.2]} 20... a4 {[%clk
0:02:21.9]} 21. Qh5 {[%clk 0:00:57.3]} 21... a3 {[%clk 0:02:12.3]} 22. Rg3
{[%clk 0:00:45.6]} 22... axb2 {[%clk 0:02:02.7]} 23. Bxb2 {[%clk 0:00:45.1]}
23... e5 {[%clk 0:01:32.6]} 24. Rh3 {[%clk 0:00:33.8]} 24... Qf5 {[%clk
0:01:32.9]} 25. Rf3 {[%clk 0:00:28.8]} 25... Qg6 {[%clk 0:01:31.3]} 26. Qxg6
{[%clk 0:00:29]} 26... hxg6 {[%clk 0:01:28.4]} 27. Bxe5 {[%clk 0:00:29.1]} 27...
Rfe8 {[%clk 0:01:29]} 28. Bb2 {[%clk 0:00:24.3]} 28... Ra6 {[%clk 0:01:29]} 29.
h4 {[%clk 0:00:14.5]} 29... Rea8 {[%clk 0:01:29.2]} 30. c4 {[%clk 0:00:14.1]}
30... bxc3 {[%clk 0:01:22.9]} 31. Nxc3 {[%clk 0:00:14.6]} 31... Nxc3+ {[%clk
0:01:23.2]} 32. Bxc3 {[%clk 0:00:15.5]} 32... Rxa2 {[%clk 0:01:23.9]} 33. Rd2
{[%clk 0:00:16.1]} 33... R2a3 {[%clk 0:01:23.6]} 34. Bb2 {[%clk 0:00:15.9]}
34... Rb3 {[%clk 0:01:24.2]} 35. Kc2 {[%clk 0:00:16]} 35... c4 {[%clk
0:01:24.6]} 36. Rf4 {[%clk 0:00:10.2]} 36... Ra2 {[%clk 0:01:25.3]} 37. Kc1
{[%clk 0:00:02]} 37... c3 {[%clk 0:01:23.1]} 38. Bxc3 {[%clk 0:00:02.1]} 38...
Rxc3+ {[%clk 0:01:20.4]} 39. Kd1 {[%clk 0:00:02.7]} 39... Ra1+ {[%clk 0:01:11]}
40. Ke2 {[%clk 0:00:02.6]} 40... Rcc1 {[%clk 0:01:11.7]} 41. Kf3 {[%clk
0:00:02.2]} 41... Bd6 {[%clk 0:01:09.5]} 42. Re4 {[%clk 0:00:02.3]} 42... Rc8
{[%clk 0:01:07]} 43. Rde2 {[%clk 0:00:01.8]} 43... Ra3 {[%clk 0:01:05.5]} 44.
Re8+ {[%clk 0:00:01.7]} 44... Rxe8 {[%clk 0:01:05.4]} 45. Rxe8+ {[%clk
0:00:02.6]} 45... Kh7 {[%clk 0:01:06.1]} 46. Rd8 {[%clk 0:00:03.5]} 46... Rxd3+
{[%clk 0:01:05.6]} 47. Ke2 {[%clk 0:00:02.9]} 47... Rd5 {[%clk 0:01:02.8]} 48.
Rd7 {[%clk 0:00:02.4]} 48... Re5+ {[%clk 0:01:02.4]} 49. Kf1 {[%clk 0:00:02.4]}
49... Be7 {[%clk 0:01:02.9]} 50. f4 {[%clk 0:00:01.5]} 50... Re4 {[%clk
0:01:03.6]} 51. Kg2 {[%clk 0:00:02.1]} 51... f5 {[%clk 0:00:55.2]} 52. gxf6
{[%clk 0:00:01.7]} 52... Bxf6 {[%clk 0:00:54.5]} 53. Kf3 {[%clk 0:00:02.3]}
53... Ra4 {[%clk 0:00:54.7]} 54. Kg4 {[%clk 0:00:02.1]} 54... Ra1 {[%clk
0:00:55.1]} 55. Rd3 {[%clk 0:00:02]} 55... Rg1+ {[%clk 0:00:55.1]} 56. Kf3
{[%clk 0:00:02.6]} 56... Bxh4 {[%clk 0:00:54.8]} 57. Ke4 {[%clk 0:00:03.2]}
57... Bf6 {[%clk 0:00:54.6]} 58. Rh3+ {[%clk 0:00:03.2]} 58... Kg8 {[%clk
0:00:55.3]} 59. Rb3 {[%clk 0:00:04]} 59... Re1+ {[%clk 0:00:55.3]} 60. Kf3
{[%clk 0:00:04]} 60... g5 {[%clk 0:00:53.6]} 61. Rb8+ {[%clk 0:00:04.1]} 61...
Kh7 {[%clk 0:00:53.8]} 62. f5 {[%clk 0:00:03.8]} 62... Rf1+ {[%clk 0:00:53.9]}
63. Kg4 {[%clk 0:00:04.5]} 63... Rf4+ {[%clk 0:00:54.6]} 64. Kh5 {[%clk
0:00:05.2]} 64... Rh4# {[%clk 0:00:55.1]} 0-1

[Event "Late-Titled-Tuesday-Blitz-February-13-2024"]
[Site "Chess.com"]
[Date "2024.02.13"]
[Round "5"]
[White "noblerone"]
[Black "riconaipe"]
[Result "1-0"]
[WhiteElo "2466"]
[BlackElo "2586"]
[TimeControl "180+1"]
[EndTime "14:56:18 PST"]
[Termination "noblerone won on time"]

1. d4 {[%clk 0:03:00.9]} 1... g6 {[%clk 0:02:54.2]} 2. Nf3 {[%clk 0:03:01]} 2...
Bg7 {[%clk 0:02:55.1]} 3. Bg5 {[%clk 0:02:58.2]} 3... d5 {[%clk 0:02:48.2]} 4.
e3 {[%clk 0:02:57.5]} 4... c6 {[%clk 0:02:48.2]} 5. Nbd2 {[%clk 0:02:57]} 5...
Bf5 {[%clk 0:02:47.6]} 6. c4 {[%clk 0:02:57]} 6... Nf6 {[%clk 0:02:44.5]} 7. Qb3
{[%clk 0:02:53.5]} 7... Bc8 {[%clk 0:02:31.9]} 8. Rc1 {[%clk 0:02:46.8]} 8...
O-O {[%clk 0:02:31.3]} 9. Be2 {[%clk 0:02:46.7]} 9... a5 {[%clk 0:02:30.7]} 10.
a3 {[%clk 0:02:43.2]} 10... a4 {[%clk 0:02:30]} 11. Qa2 {[%clk 0:02:43.5]} 11...
Bf5 {[%clk 0:02:24.7]} 12. O-O {[%clk 0:02:42.6]} 12... h6 {[%clk 0:02:23.1]}
13. Bh4 {[%clk 0:02:39.8]} 13... e6 {[%clk 0:02:14.1]} 14. Ne5 {[%clk
0:02:22.5]} 14... g5 {[%clk 0:02:05.8]} 15. Bg3 {[%clk 0:02:22]} 15... Nbd7
{[%clk 0:02:06.4]} 16. Nxd7 {[%clk 0:02:17.6]} 16... Qxd7 {[%clk 0:01:58.7]} 17.
Be5 {[%clk 0:02:17.2]} 17... Rfc8 {[%clk 0:01:52.7]} 18. Rfd1 {[%clk 0:02:11.1]}
18... Bg6 {[%clk 0:01:51.2]} 19. h3 {[%clk 0:02:05.4]} 19... h5 {[%clk
0:01:49.4]} 20. Nf1 {[%clk 0:01:56.6]} 20... Ne4 {[%clk 0:01:46.5]} 21. Bxg7
{[%clk 0:01:55.9]} 21... Kxg7 {[%clk 0:01:47.4]} 22. Nd2 {[%clk 0:01:52.8]}
22... Nxd2 {[%clk 0:01:33]} 23. Rxd2 {[%clk 0:01:53.7]} 23... f5 {[%clk
0:01:32.9]} 24. Qb1 {[%clk 0:01:43]} 24... Rf8 {[%clk 0:01:27.3]} 25. cxd5
{[%clk 0:01:39.8]} 25... exd5 {[%clk 0:01:25]} 26. Bd3 {[%clk 0:01:39.9]} 26...
Rf6 {[%clk 0:01:23.9]} 27. Qc2 {[%clk 0:01:32.2]} 27... h4 {[%clk 0:01:20.2]}
28. Re2 {[%clk 0:01:20.6]} 28... Bh5 {[%clk 0:01:12.9]} 29. Ree1 {[%clk
0:01:20.5]} 29... g4 {[%clk 0:01:11.4]} 30. hxg4 {[%clk 0:01:18.3]} 30... fxg4
{[%clk 0:01:12.3]} 31. e4 {[%clk 0:01:16.2]} 31... Raf8 {[%clk 0:01:04.6]} 32.
exd5 {[%clk 0:01:09.9]} 32... Rxf2 {[%clk 0:00:47.3]} 33. Qc5 {[%clk 0:01:09.3]}
33... Qxd5 {[%clk 0:00:18.4]} 34. Re7+ {[%clk 0:01:01.1]} 34... R8f7 {[%clk
0:00:16.2]} 35. Rxf7+ {[%clk 0:00:55.2]} 35... Rxf7 {[%clk 0:00:16.1]} 36. Qxd5
{[%clk 0:00:45]} 36... cxd5 {[%clk 0:00:17]} 37. Rc5 {[%clk 0:00:44.2]} 37...
Rd7 {[%clk 0:00:13.8]} 38. Bb5 {[%clk 0:00:40.3]} 38... Rd8 {[%clk 0:00:08.2]}
39. Bxa4 {[%clk 0:00:40.2]} 39... g3 {[%clk 0:00:07.4]} 40. Bb3 {[%clk
0:00:37.2]} 40... Bf7 {[%clk 0:00:07.2]} 41. Rc7 {[%clk 0:00:37.2]} 41... Re8
{[%clk 0:00:05.4]} 42. Kf1 {[%clk 0:00:35.1]} 42... Kf6 {[%clk 0:00:04.9]} 43.
Rxb7 {[%clk 0:00:32]} 43... Bg6 {[%clk 0:00:05.4]} 44. Rb6+ {[%clk 0:00:22]}
44... Kg5 {[%clk 0:00:05.8]} 45. Rxg6+ {[%clk 0:00:20.9]} 45... Kxg6 {[%clk
0:00:06.7]} 46. Bxd5 {[%clk 0:00:21.2]} 46... Kg5 {[%clk 0:00:04.8]} 47. Bc4
{[%clk 0:00:17.7]} 47... Kf4 {[%clk 0:00:03.9]} 48. d5 {[%clk 0:00:15.1]} 48...
Ke3 {[%clk 0:00:02.3]} 49. Ke1 {[%clk 0:00:14.6]} 49... Kd4+ {[%clk 0:00:02.6]}
50. Be2 {[%clk 0:00:14.1]} 1-0